Cogmind - Beta 12 @@@ ROGUE MODE // 2023.10.11 @ 22:44:05 Player: art-hropod Result: Self-destructed Performance ------------- Evolutions (1) 500 Regions Visited (3) 600 Robots Destroyed (6) 30 Value Destroyed (138) 138 Prototype IDs (0) 0 Alien Tech Used (0) 0 Bonus (0) 0 TOTAL SCORE: 1268 Bonus ------- None Cogmind --------- Core Integrity 381/400 Matter 299/300 Energy 250/250 System Corruption 0% Temperature Cool (4) Movement Walking (120) Location -9/Materials Parts ------- > --- POWER (1) -------- Ion Engine > --- PROPULSION (4) --- Aluminum Leg Aluminum Leg Aluminum Leg Aluminum Leg > --- UTILITY (2) ------ Small Storage Unit Signal Interpreter > --- WEAPON (2) ------- EM Shotgun Light Assault Rifle > --- INVENTORY (8) ---- Ion Engine Light Ion Engine Light Ion Engine Light Treads Compact Wheel Seismic Detector EM Shotgun Grenade Launcher Peak State ------------ > --- POWER ------------ Ion Engine > --- PROPULSION ------- Aluminum Leg Aluminum Leg Aluminum Leg Aluminum Leg > --- UTILITY ---------- Small Storage Unit Signal Interpreter > --- WEAPON ----------- EM Shotgun Light Assault Rifle > --- INVENTORY -------- Ion Engine Light Ion Engine Light Ion Engine Light Treads Compact Wheel Seismic Detector EM Shotgun Grenade Launcher [Rating: 10] Favorites ----------- Power Ion Engine Engine Ion Engine Propulsion Aluminum Leg Leg Aluminum Leg Utility Small Storage Unit Storage Small Storage Unit Processor Signal Interpreter Weapon Light Assault Rifle Energy Gun EM Shotgun Ballistic Gun Light Assault Rifle Launcher Grenade Launcher Build | -11 -10 -10 -9 ------- Run | Jun Mat Min Mat Slots Evolved 2 | . . . 2 Power . | . . . . Propulsion 2 | . . . 2 Utility . | . . . . Weapon . | . . . . Parts Attached 12 | 6 3 . 3 Power 1 | 1 . . . Engine 1 | 1 . . . Core . | . . . . Reactor . | . . . . Propulsion 4 | 2 . . 2 Treads . | . . . . Leg 4 | 2 . . 2 Wheel . | . . . . Hover . | . . . . Flight . | . . . . Utility 2 | 1 1 . . Device . | . . . . Storage 1 | 1 . . . Processor 1 | . 1 . . Hackware . | . . . . Protection . | . . . . Artifact . | . . . . Weapon 5 | 2 2 . 1 Energy Gun 1 | . . . 1 Energy Cannon . | . . . . Ballistic Gun 3 | 2 1 . . Ballistic Cannon . | . . . . Launcher 1 | . 1 . . Special Weapon . | . . . . Impact Weapon . | . . . . Slashing Weapon . | . . . . Piercing Weapon . | . . . . Special Melee Weapon . | . . . . Unidentified Prototypes . | . . . . Parts Lost . | . . . . Power . | . . . . Propulsion . | . . . . Utility . | . . . . Weapon . | . . . . Highest Loss Streak . | . . . . To Critical Strikes . | . . . . Average Slot Usage (%) 94 | . 97 100 84 Engine 13 | . 14 14 11 Leg 28 | . 28 28 28 Storage 13 | . 14 14 11 Processor 12 | . 11 14 11 Energy Gun 1 | . . . 4 Ballistic Gun 24 | . 26 28 17 Naked Turns . | . . . . Heaviest Build 15 | 13 15 13 14 Greatest Support 40 | 20 20 20 40 Greatest Overweight (x) . | . . . . Average Overweight (x) . | . . . . Largest Inventory Capacity 8 | 8 8 8 8 Average Capacity 7 | 6 8 8 8 Most Carried 8 | 8 8 8 8 Average Carried 7 | 4 7 8 7 Final Capacity 8 | 8 8 8 8 Final Carried 8 | 5 8 8 8 Class Distribution -------------------- 100% | Mutant Dominant Class ---------------- Mutant | -10/Materials Mutant | -10/Mines Mutant | -9/Materials Resources | -11 -10 -10 -9 ----------- Run | Jun Mat Min Mat Matter Collected 394 | 216 28 14 136 Remotely . | . . . . Salvage Created 173 | . 15 . 158 Parts 15 | . 4 . 11 Haulers Intercepted . | . . . . Recyclers Shooed 1 | . 1 . . Parts Field Recycled . | . . . . Retrieved Matter . | . . . . Parts Self-Destructed . | . . . . Prevented . | . . . . Kills | -11 -10 -10 -9 ------- Run | Jun Mat Min Mat Combat Hostiles Destroyed 5 | . 2 . 3 Guns 3 | . 1 . 2 AOE 2 | . 1 . 1 Classes Destroyed 4 | . 1 . 3 Builder 1 | . . . 1 Swarmer 2 | . 2 . . Grunt 2 | . . . 2 Sentry 1 | . . . 1 Best Kill Streak 2 | . 2 . 2 Combat Bots Only 2 | . 2 . 1 Max Kills in Single Turn 2 | . 2 . 2 Gunslinging . | . . . . Exploded 1 | . 1 . 1 Melee . | . . . . Uniques/NPCs Destroyed . | . . . . Combat | -11 -10 -10 -9 -------- Run | Jun Mat Min Mat Damage Taken 305 | . 56 . 249 Core 28 | . 9 . 19 Absorbed by Shields . | . . . . Core Remaining (%) 98 | 100 . 96 . Volleys Fired 21 | . 4 2 15 Largest 2 | . 2 2 2 Hottest 65 | . 50 40 65 Shots Fired 42 | . 8 4 30 Gun 41 | . 7 4 30 Cannon . | . . . . Launcher 1 | . 1 . . Special . | . . . . Kinetic 35 | . 7 4 24 Thermal . | . . . . Explosive 1 | . 1 . . Electromagnetic 6 | . . . 6 Robot Hit Streak 10 | . 5 1 10 Robot Miss Streak 2 | . 1 1 2 Penetration Max . | . . . . Secondary Targets . | . . . . Shots Hit Robots 28 | . 6 2 20 Core Hits 13 | . 3 1 9 Critical Kills . | . . . . Critical Parts Destroyed . | . . . . Critical Strikes . | . . . . Melee Attacks . | . . . . Impact . | . . . . Slashing . | . . . . Piercing . | . . . . Sneak Attacks . | . . . . Combat Hostiles . | . . . . Follow-up Attacks . | . . . . Damage Inflicted 373 | . 84 18 271 Guns 294 | . 57 18 219 Cannons . | . . . . Explosions 79 | . 27 . 52 Melee . | . . . . Ramming . | . . . . Kinetic 203 | . 57 18 128 Thermal 52 | . . . 52 Explosive 27 | . 27 . . Electromagnetic 91 | . . . 91 Impact . | . . . . Slashing . | . . . . Piercing . | . . . . Highest Corruption . | . . . . Average Corruption . | . . . . Corruption Purged . | . . . . Corruption Blocked . | . . . . Overload Shots . | . . . . Overflow Damage . | . . . . Projectiles . | . . . . Explosions . | . . . . Melee . | . . . . Knockbacks . | . . . . Impact . | . . . . Kinetic . | . . . . Secondary . | . . . . Self-Inflicted Damage 39 | . . . 39 Shots 1 | . . . 1 Rammed . | . . . . Targets Rammed . | . . . . Kicked . | . . . . Crushed . | . . . . Highest Temperature 30 | . . . 30 Average Temperature 13 | . . . 13 Received Heat Transfer 81 | . . . 81 Siege Activations . | . . . . Robots Corrupted . | . . . . Combat Hostiles . | . . . . Parts Fried . | . . . . Impact Corruptions . | . . . . Robots Melted . | . . . . Combat Hostiles . | . . . . Parts Melted . | . . . . Heat Transferred . | . . . . Parts Sabotaged . | . . . . Parts Stolen . | . . . . Parts Stripped . | . . . . Power Chain Reactions 1 | . . . 1 Missiles Intercepted . | . . . . Alert | -11 -10 -10 -9 ------- Run | Jun Mat Min Mat Peak Influence 139 | . 106 40 139 Initial 40 | . . 40 15 Average 47 | . 49 40 75 Maximum Alert Level . | . . . . Low Security (%) 100 | 100 100 100 100 Level 1 . | . . . . Level 2 . | . . . . Level 3 . | . . . . Level 4 . | . . . . Level 5 . | . . . . High Security . | . . . . Max Security . | . . . . Squads Dispatched 2 | . . . 2 Investigation 1 | . . . 1 Extermination . | . . . . Reinforcement 1 | . . . 1 Assault . | . . . . Garrison . | . . . . Intercept . | . . . . Searches Triggered . | . . . . Construction Impeded . | . . . . Haulers Reinforced . | . . . . Active Scanning Responses . | . . . . Cargo Convoy Interrupts . | . . . . Stealth | -11 -10 -10 -9 --------- Run | Jun Mat Min Mat Distress Signals 1 | . . . 1 Communications Jammed . | . . . . Distress Signals . | . . . . Times Spotted 13 | . 6 . 7 Peak Tracking Total 3 | . 3 . 3 Tactical Retreats 1 | . 1 . . Traps | -11 -10 -10 -9 ------- Run | Jun Mat Min Mat Traps Triggered 1 | . . . 1 Indirectly . | . . . . Trap Hack Attempts . | . . . . Triggered . | . . . . Disarmed . | . . . . Reprogrammed . | . . . . Reused . | . . . . Traps Extracted . | . . . . Installed . | . . . . Triggered . | . . . . Machines | -11 -10 -10 -9 ---------- Run | Jun Mat Min Mat Machines Disabled . | . . . . Max in Single Turn . | . . . . Machines Repaired . | . . . . Machines Sabotaged . | . . . . Overloaded Fab Kills . | . . . . Hacking | -11 -10 -10 -9 --------- Run | Jun Mat Min Mat Machines Accessed 1 | . 1 . . Terminals 1 | . 1 . . Fabricators . | . . . . Repair Stations . | . . . . Recycling Units . | . . . . Scanalyzers . | . . . . Garrison Access . | . . . . Total Hacks 2 | . 2 . . Successful . | . . . . Failed 2 | . 2 . . Catastrophic . | . . . . Database Lockouts . | . . . . Manual 2 | . 2 . . Terminals 2 | . 2 . . Fabricators . | . . . . Repair Stations . | . . . . Recycling Units . | . . . . Scanalyzers . | . . . . Garrison Access . | . . . . Terminal Hacks . | . . . . Fabricator Hacks . | . . . . Repair Station Hacks . | . . . . Recycling Unit Hacks . | . . . . Scanalyzer . | . . . . Garrison Access Hacks . | . . . . Unauthorized Hacks . | . . . . Terminals . | . . . . Fabricators . | . . . . Repair Stations . | . . . . Recycling Units . | . . . . Scanalyzers . | . . . . Garrison Access . | . . . . Data Cores Recovered . | . . . . Used . | . . . . Hacking Detections 1 | . 1 . . Full Trace Events . | . . . . Feedback Events . | . . . . Feedback Blocked . | . . . . Robot Schematics Acquired . | . . . . Robots Built . | . . . . Authchips . | . . . . Time . | . . . . Total Robot Build Rating . | . . . . Part Schematics Acquired . | . . . . Parts Built . | . . . . Authchips . | . . . . Time . | . . . . Total Part Build Rating . | . . . . Parts Repaired . | . . . . Time . | . . . . Parts Recycled . | . . . . Recycled Matter . | . . . . Retrieved Matter . | . . . . Retrieved Components . | . . . . Parts Scanalyzed . | . . . . Part Schematics Acquired . | . . . . Parts Damaged . | . . . . Bothacking | -11 -10 -10 -9 ------------ Run | Jun Mat Min Mat Used RIF Installer . | . . . . Robots Hacked . | . . . . Non-combat . | . . . . Combat . | . . . . Robot Hacks Applied . | . . . . Relay Couplers Released . | . . . . Fabnet Peak Effective % . | . . . . Robots Rewired . | . . . . Allies Hacked . | . . . . Hacks Repelled . | . . . . Allies | -11 -10 -10 -9 -------- Run | Jun Mat Min Mat Total Allies . | . . . . Largest Group . | . . . . Highest-Rated Group . | . . . . Highest-Rated Ally . | . . . . Total Orders . | . . . . Ally Attacks . | . . . . Total Damage . | . . . . Kills . | . . . . Allies Corrupted . | . . . . Allies Melted . | . . . . Intel | -11 -10 -10 -9 ------- Run | Jun Mat Min Mat Robot Analysis Total . | . . . . Derelict Logs Recovered 1 | . . 1 . Drone Launches . | . . . . Drone Recoveries . | . . . . Exploration | -11 -10 -10 -9 ------------- Run | Jun Mat Min Mat Turns Passed 702 | 71 230 239 162 Spaces Moved 506 | 51 175 195 85 Core 8 | 8 . . . Treads . | . . . . Legs 498 | 43 175 195 85 Wheels . | . . . . Hover . | . . . . Flight . | . . . . Fastest Speed 50 | 50 120 120 120 Average Speed 118 | 109 120 120 120 Slowest Speed 120 | 120 120 120 120 Overloaded Moves . | . . . . Propulsion Burnouts . | . . . . Robots Hopped . | . . . . Cave-ins Triggered . | . . . . Exploration Rate (%) 22 | 3 25 48 12 Regions Visited 3 Branch Regions 1 Pre-discovered Areas 1 | . . 1 . Known Exits Taken 2 | . 1 1 . Unknown Exits Taken 1 | 1 . . . Scrap Searched 1 | . . 1 . Spaces Dug . | . . . . Terrain Destroyed 12 | . 10 . 2 Melee . | . . . . Projectile . | . . . . AOE 12 | . 10 . 2 Terrain Rammed . | . . . . Walls Destroyed . | . . . . Machines Disabled . | . . . . Actions | -11 -10 -10 -9 --------- Run | Jun Mat Min Mat Total 566 | 66 187 196 117 Wait 11 | . . . 11 Move 503 | 50 174 194 85 Hop . | . . . . Pick Up 16 | 10 5 . 1 Fast Attach 4 | 1 . . 3 Attach 6 | 5 1 . . Detach . | . . . . Swap 2 | . 2 . . Drop 3 | . 1 . 2 Fire 21 | . 4 2 15 Melee . | . . . . Ram . | . . . . Kick . | . . . . Crush . | . . . . Escape Stasis . | . . . . Rewire . | . . . . Trap . | . . . . Miscellaneous . | . . . . Route ------- -11/Junkyard -10/Materials -10/Mines -9/Materials History --------- Turn | Location | Event 4 | -11/Junkyard | Discovered new exit (range 14) 72 | -11/Junkyard | Entered Materials 295 | -10/Materials | Discovered new exit (range 7) 301 | -10/Materials | Identified exit to Mines 302 | -10/Materials | Entered Mines 314 | -10/Mines | Build established: Mutant 505 | -10/Mines | Learned location of Zion (-7) 535 | -10/Mines | Discovered new exit (range 7) 540 | -10/Mines | Identified exit to Materials 541 | -10/Mines | Entered Materials 541 | -9/Materials | Evolved 2 slots: Propulsion x2 703 | -9/Materials | Self-destructed Last Messages --------------- 00658_ U-05 Engineer builds a Door. 00659_ K-01 Serf collects debris. 00661_ Acquired 60 matter. 00662_ R-06 Scavenger collects Assault Rifle. 00662_ Door malfunctions. 00663_ K-01 Serf collects debris. 00671_ W-16 Scout sends out distress signal. 00681_ Chain reaction triggered in Ion Engine. 00681_ G-34 Mercenary destroyed. 00681_ U-05 Engineer destroyed. 00684_ K-01 Serf collects debris. 00685_ Acquired Aluminum Leg. 00687_ K-01 Serf collects debris. 00688_ Acquired 34 matter. 00690_ K-01 Serf collects debris. 00699_ Triggered Alarm Trap. 00699_ An alarm sounds. 00699_ ALERT: Alarm triggered, dispatching investigation squad. 00701_ U-05 Engineer lays Concrete. Map ----- +----------------------------------------------------+ | ??? #???" ?????????????????????????????????? | | ??? #???"??????????????????????????????????? | | ? #??? ??????????????????????????????????? | | " """ #?? ??????????????????????????????????? | | R" """ #??/#??????????????????????????????????? | | "" """ #?? #??????????????????????????????????? | | ###+######?????????????????????????????? | | # #?????????????????????????????? | | ?# # """ #?????????????????????????????? | | ?# # = """ #?????????????????????????????? | | ?+ # """ #?????????????????????????????? | | ?# + #?????????????????????????????? | | ?# # """ #?????????????????????????????? | | ?###### ### """ #?????????????????????????????? | | ??????# #?# """ #?????????????????????????????? | | ??????# #?# * #?????????????????????????????? | | ??????# #?######+###?????????????????????????????? | | ??????# #??????# #???????????????????????????????? | | ??????# #??????# #???????????????????????????????? | | ??????# #??????# #???????????????????????????????? | | ??????# #??????# #???????????????????????????????? | | ??????# #?????## ##??????????????????????????????? | | ??????# ####### #??????????????????????????????? | | ??????# #![[ ## ########+#####?????????????????? | | ??##### #![[[+ ??????????????????? | | ### #! # @Y#?????????????????????? | | # # * k#?????????????????????? | | ! # #[ #?????????????????????? | | # # ^ #?????????????????????? | | ### # + #?????????????????????? | | ## ## #%! uu #?????????????????????? | | ## ## #| ^ #### #?????????????????????? | | ## ########;k;#####??? #?????????????????????? | | ## #???# ! [ #???? #?????????????????????? | | ## #???# #????u#?????????????????????? | | ## #???# #????u#?????????????????????? | | #### #???# #???? #?????????????????????? | | ??? ???###########???? #?????????????????????? | | ??? ?????????????????????????????????????????? | | ??? ????????????????????????????????????????? | | ??? ????????????????????????????????????????? | | ???? ?????????????????????????????????????????? | | ?????????????????????????????????????????????????? | | ?????????????????????????????????????????????????? | | ?????????????????????????????????????????????????? | | ?????????????????????????????????????????????????? | | ?????????????????????????????????????????????????? | | ?????????????????????????????????????????????????? | | ?????????????????????????????????????????????????? | | ?????????????????????????????????????????????????? | +----------------------------------------------------+ Best States ------------- Heat Dissipation 28 Energy Generation 10 Energy Capacity 250 Matter Stores 300 Matter Capacity 300 Sight Range 16 Terrain Scan Density 10 Evasion (%) 55 Item Schematics ----------------- None Robot Schematics ------------------ None Fabricated ------------ Nothing Alien Tech Used ----------------- None Achievements -------------- None Challenges ------------ None Game ------ Seed BattleExperimentalCapacitor Manual? 0 Play Time 00:08:09 Cumulative 61.7 hours Start 2023.10.11 @ 22:37:31 End 2023.10.11 @ 22:44:05 Sessions 1 Manual Loads 0 Difficulty Rogue Special Mode None Game No. 80 Rogue 64 Adventurer 9 Explorer 7 Win Type - Total 4 Types 4/0/0/0/0/0/0/0/0 Lore% 18 Gallery% 42 Achievement% 31 Wizard Run 0 Options --------- ASCII 0 Keyboard 0 Movement Mouse Keybinds 0 Fullscreen 1 Font 32/Terminus Map View 63x52 Tactical HUD 1 Map Filters NONE Filters NONE Steam 1 RUN: ac59d5f8-aa87-44d0-a3a7-97cb6ac15702